bitfinex-derivatives/quotes_SOLF0:USTF0_20250501
["timestamp","ask_amount","ask_price","bid_price","bid_amount"]
[1746079223877,23.84,149.27,149.21,23.84]
[1746079224075,23.84,149.27,149.2,2.0705]
[1746079224276,6.6999,149.24,149.2,8.7717]
[1746079225374,6.7001,149.23,149.2,2.0705]
[1746079225869,25.9028,149.27,149.2,2.0705]
[1746079226783,6.6999,149.24,149.2,8.7716]
[1746079229476,6.6991,149.26,149.2,2.0705]
[1746079229682,23.84,149.27,149.2,2.0705]
[1746079230078,6.6983,149.27,149.23,6.6996]
[1746079230572,6.6981,149.28,149.24,6.6992]
[1746079230777,25.9522,149.3,149.24,6.6992]
[1746079232887,25.9522,149.3,149.22,23.84]
[1746079233090,7.06848717,149.26,149.2,2.0705]
[1746079233288,30.90848717,149.26,149.19,23.84]
[1746079233495,6.7003,149.23,149.19,30.5415]
[1746079233893,30.90848717,149.26,149.19,23.84]
[1746079234095,6.7008,149.22,149.19,23.84]
[1746079235096,6.701,149.21,149.19,23.84]
[1746079235394,6.701,149.21,149.16,23.84]
[1746079235795,6.7006,149.22,149.18,6.702]
[1746079237593,2.099,149.25,149.18,6.702]
[1746079239296,2.099,149.25,149.17,6.7025]
[1746079240197,6.7006,149.22,149.18,6.7021]
[1746079240891,6.701,149.21,149.17,6.7025]
[1746079241496,6.7006,149.22,149.18,6.7022]
[1746079242097,2.099,149.25,149.16,23.84]
[1746079242297,2.0933,149.24,149.16,23.84]
[1746079242794,6.7012,149.21,149.17,6.7027]
[1746079244198,6.7014,149.2,149.17,6.7027]
[1746079244396,2.0933,149.24,149.17,6.7027]
[1746079244696,6.7014,149.2,149.17,6.7027]
[1746079245199,6.7014,149.2,149.16,30.543]
[1746079245797,7.06848717,149.23,149.16,30.543]
[1746079245798,6.7018,149.19,149.16,23.84]
[1746079246001,6.7018,149.19,149.15,6.7035]
[1746079246501,23.86,149.22,149.14,6.7039]
[1746079247095,23.86,149.22,149.13,29.9861]
[1746079247299,7.06848717,149.2,149.13,25.855]
[1746079247699,6.703,149.17,149.13,25.855]
[1746079248102,6.703,149.17,149.14,6.704]
[1746079248602,6.7024,149.18,149.14,6.704]
[1746079249900,6.703,149.17,149.13,32.5594]
[1746079250198,7.06848717,149.2,149.13,30.5644]
[1746079250400,7.06848717,149.2,149.13,23.86]
[1746079250598,6.7028,149.17,149.12,6.7046]
[1746079250902,6.7028,149.17,149.1,23.84]
[1746079251201,6.7028,149.17,149.13,6.7042]
[1746079251703,6.7028,149.17,149.14,6.704]
[1746079252201,6.7028,149.17,149.13,6.7043]
[1746079253703,6.7024,149.18,149.14,6.7037]
[1746079254905,7.06848717,149.2,149.1,23.84]
[1746079255499,6.7031,149.17,149.13,6.7042]
[1746079255799,23.86,149.18,149.09,2.1086]
[1746079255999,6.7039,149.15,149.11,6.7054]
[1746079256299,7.06848717,149.17,149.11,6.7054]
[1746079256598,6.7043,149.14,149.11,6.7054]
[1746079258105,7.06848717,149.17,149.11,6.7054]
[1746079259006,6.7039,149.15,149.11,6.7054]
[1746079259306,7.06848717,149.17,149.12,6.7049]
[1746079260108,6.7034,149.16,149.12,6.7049]
[1746079260606,6.7034,149.16,149.13,6.7044]
[1746079260908,6.7036,149.15,149.09,23.86]
[1746079263211,6.7036,149.15,149.12,6.7049]
[1746079263407,6.7041,149.14,149.09,23.86]
[1746079264513,6.7041,149.14,149.11,6.7051]
[1746079265509,6.7045,149.13,149.09,23.86]
[1746079265710,27.9779,149.18,149.09,23.86]
[1746079265910,7.06848717,149.17,149.09,23.86]
[1746079266111,6.7038,149.15,149.11,6.7054]
[1746079267506,6.7038,149.15,149.12,6.7049]
[1746079267708,7.06848717,149.17,149.12,6.7049]
[1746079268809,6.7038,149.15,149.12,6.7049]
[1746079269108,7.06848717,149.17,149.12,6.7049]
[1746079269315,7.06848717,149.17,149.13,6.7044]
[1746079269513,25.8609,149.18,149.09,23.86]
[1746079270115,6.7032,149.16,149.13,6.7043]
[1746079270606,25.8609,149.18,149.13,6.7043]
[1746079271813,6.7029,149.17,149.13,6.7043]
[1746079273214,23.86,149.18,149.09,30.92848717]
[1746079274214,23.86,149.18,149.15,6.7033]
[1746079274415,6.7022,149.19,149.15,6.7033]
[1746079275513,6.7025,149.18,149.13,23.86]
[1746079276413,6.7025,149.18,149.14,6.7039]
[1746079276715,6.7032,149.16,149.1,23.86]
[1746079277013,6.7037,149.15,149.1,23.86]
[1746079277512,6.7037,149.15,149.11,6.7053]
[1746079277715,6.7042,149.14,149.1,23.86]
[1746079277907,7.06848717,149.15,149.1,23.86]
[1746079278107,7.06848717,149.15,149.08,3.9784]
[1746079278408,6.7045,149.13,149.08,8.6634]
[1746079278710,7.06848717,149.15,149.09,6.7063]
[1746079278901,6.7045,149.13,149.09,6.7063]
[1746079281417,6.705,149.12,149.08,6.7066]
[1746079281717,23.84,149.13,149.07,23.86]
[1746079281908,7.06848717,149.12,149.06,2.119]
[1746079282113,23.84,149.13,149.06,2.119]
[1746079282817,6.705,149.12,149.08,6.7064]
[1746079283417,6.705,149.12,149.09,6.7061]
[1746079285111,6.705,149.12,149.08,6.7066]
[1746079285322,23.84,149.13,149.08,6.7066]
[1746079286413,6.7051,149.12,149.08,6.7066]
[1746079287218,6.7055,149.11,149.07,6.707]
[1746079288915,6.7055,149.11,149.08,6.7067]
[1746079289119,23.84,149.13,149.06,2.119]
[1746079289519,30.5446,149.13,149.09,6.706]
[1746079290020,23.84,149.13,149.06,2.119]
[1746079290220,27.8709,149.16,149.06,2.119]
[1746079290722,6.7039,149.15,149.11,6.705]
[1746079290915,27.8709,149.16,149.11,6.705]
[1746079291820,27.8709,149.16,149.1,6.7057]
[1746079292017,27.8709,149.16,149.08,23.84]
[1746079292722,27.8709,149.16,149.08,30.5466]
[1746079292926,27.8709,149.16,149.08,23.84]
[1746079293823,6.7045,149.14,149.1,6.7056]
[1746079294724,27.8709,149.16,149.11,6.7053]
[1746079294924,23.84,149.16,149.08,23.84]
[1746079295121,23.84,149.19,149.09,3.9144]
[1746079295321,23.84,149.19,149.15,6.7035]
[1746079297227,30.542,149.19,149.15,6.7035]
[1746079303129,23.84,149.19,149.12,23.84]
[1746079303324,23.84,149.19,149.13,1.948]
[1746079303530,23.84,149.22,149.13,1.948]
[1746079303726,30.5405,149.22,149.14,4.1141]
[1746079304232,30.5405,149.22,149.19,6.7018]
[1746079304637,6.701,149.21,149.16,23.84]
[1746079304834,23.84,149.22,149.16,23.84]
[1746079305132,30.5407,149.22,149.16,23.84]
[1746079305332,6.7007,149.22,149.16,23.84]
[1746079306330,6.7007,149.22,149.19,6.7017]
[1746079306732,6.7002,149.23,149.19,6.7017]
[1746079307129,7.06848717,149.24,149.19,6.7017]
[1746079307735,6.7002,149.23,149.19,6.7017]
[1746079308032,7.06848717,149.24,149.19,6.7017]
[1746079308530,7.06848717,149.24,149.16,23.84]
[1746079308730,7.06848717,149.24,149.18,6.7022]
[1746079309528,7.06848717,149.21,149.13,25.788]
[1746079309733,30.90848717,149.21,149.13,25.788]
[1746079309932,6.7022,149.19,149.15,6.7034]
[1746079311637,6.7024,149.18,149.15,6.7034]
[1746079311832,30.90848717,149.21,149.14,6.704]
[1746079312232,6.7025,149.18,149.14,6.704]
[1746079312628,23.82,149.17,149.09,23.82]
[1746079312829,6.7036,149.15,149.09,23.82]
[1746079313028,23.82,149.17,149.11,6.705]
[1746079313223,23.82,149.17,149.09,23.82]
[1746079313429,30.5229,149.17,149.09,23.82]
[1746079313633,23.82,149.17,149.12,6.7047]
[1746079314438,6.7033,149.16,149.12,6.7047]
[1746079315535,6.7033,149.16,149.13,6.7045]
[1746079315732,30.5228,149.17,149.13,6.7045]
[1746079315933,23.82,149.17,149.09,23.82]
[1746079316634,30.5229,149.17,149.14,6.7039]
[1746079319237,6.7032,149.16,149.13,6.7044]
[1746079320942,6.7036,149.15,149.09,23.82]
[1746079321541,6.7033,149.16,149.12,6.7046]
[1746079322035,6.7033,149.16,149.09,23.82]
[1746079322336,6.7033,149.16,149.13,6.7042]
[1746079324751,23.82,149.17,149.09,23.82]
[1746079325840,23.82,149.17,149.11,6.7053]
[1746079326142,6.704,149.15,149.11,6.7053]
[1746079327545,6.7041,149.14,149.11,6.7053]
[1746079327741,6.7041,149.14,149.09,23.82]
[1746079328043,7.06848717,149.15,149.1,6.7057]
[1746079328846,6.7042,149.14,149.1,6.7057]
[1746079329645,6.7045,149.13,149.09,6.7061]
[1746079329849,23.84,149.13,149.09,6.7061]
[1746079330254,30.5447,149.13,149.09,6.7061]
[1746079330950,23.84,149.13,149.1,6.7056]
[1746079332449,23.84,149.13,149.08,4.1519]
[1746079333051,23.84,149.13,149.11,6.7051]
[1746079333243,6.7042,149.14,149.11,6.7051]
[1746079335757,23.84,149.16,149.08,4.1519]
[1746079336051,30.90848717,149.19,149.08,11.22038717]
[1746079336352,30.5421,149.19,149.16,6.7031]
[1746079338551,23.84,149.19,149.13,2.0085]
[1746079338758,561.94848717,149.22,149.13,2.0085]
[1746079339053,6.7011,149.21,149.17,6.7023]
[1746079340757,6.7014,149.2,149.17,6.7023]
[1746079341056,561.94848717,149.22,149.17,6.7023]
[1746079341355,6.7011,149.21,149.18,6.7022]
[1746079342058,544.80898717,149.22,149.18,6.7022]
[1746079342253,30.88848717,149.22,149.19,6.7015]
[1746079343055,6.6997,149.24,149.14,2.0384]
[1746079343258,23.82,149.24,149.16,23.82]
[1746079343556,23.82,149.24,149.21,6.7006]
[1746079346161,23.82,149.24,149.16,23.82]
[1746079346461,27.9486,149.27,149.16,23.82]
[1746079346661,6.6992,149.25,149.21,6.7007]
[1746079346960,27.9486,149.27,149.21,6.7007]
[1746079347162,6.6994,149.25,149.21,6.7007]
[1746079347349,6.6994,149.25,149.22,6.7004]
[1746079347554,30.88848717,149.28,149.2,23.82]
[1746079347755,6.6988,149.26,149.2,23.82]
[1746079348563,6.6988,149.26,149.22,6.7002]
[1746079348862,6.6991,149.25,149.22,6.7002]
[1746079349665,6.6988,149.26,149.22,6.7002]
[1746079351463,30.5184,149.27,149.23,6.6999]
[1746079352168,23.82,149.27,149.24,6.6991]
[1746079352367,23.82,149.27,149.2,23.82]
[1746079352862,23.82,149.27,149.24,6.6993]
[1746079353768,30.5183,149.27,149.24,6.6993]
[1746079354571,23.82,149.27,149.2,23.82]
[1746079355069,6.6994,149.25,149.21,6.7006]
[1746079355464,6.6994,149.25,149.2,23.82]
[1746079355969,6.6994,149.25,149.22,6.7002]
[1746079358069,6.6988,149.26,149.22,6.7002]
[1746079360374,6.6994,149.25,149.22,6.7002]
[1746079360565,23.82,149.27,149.21,6.7007]
[1746079360972,6.6999,149.24,149.21,6.7007]
[1746079361273,23.82,149.27,149.18,2.1223]
[1746079361976,6.6995,149.25,149.21,6.7006]
[1746079362277,23.82,149.27,149.18,2.1223]
[1746079362471,6.6994,149.25,149.17,23.8]
[1746079363177,6.6994,149.25,149.21,6.7005]
[1746079363370,6.6997,149.24,149.21,6.7005]
[1746079363571,30.88848717,149.27,149.17,23.8]
[1746079363871,30.88848717,149.27,149.2,6.7011]
[1746079364474,30.88848717,149.27,149.17,23.8]
[1746079364685,30.88848717,149.27,149.19,6.7016]
[1746079366995,6.7006,149.22,149.19,6.7016]
[1746079367201,30.88848717,149.27,149.19,6.7016]
[1746079367490,6.7003,149.23,149.19,6.7016]
[1746079367693,23.8,149.22,149.19,6.7016]
[1746079368293,30.5006,149.22,149.19,6.7016]
[1746079370595,23.8,149.22,149.2,6.701]
[1746079370793,6.0523,149.28,149.17,7.06848717]
[1746079370994,6.0523,149.28,149.17,30.86848717]
[1746079371195,23.8,149.27,149.17,30.86848717]
[1746079371588,6.6997,149.24,149.2,6.7014]
[1746079371793,23.8,149.27,149.2,6.7014]
[1746079372693,6.6999,149.24,149.2,6.7014]
[1746079373790,6.6999,149.24,149.21,6.7009]
[1746079373991,6.6999,149.24,149.17,30.86848717]
[1746079374294,6.6999,149.24,149.2,6.7012]
[1746079374995,6.7,149.23,149.2,6.7012]
[1746079375891,6.6997,149.24,149.17,30.86848717]
[1746079376095,6.6997,149.24,149.21,6.7009]
[1746079378299,6.6997,149.24,149.2,6.7012]
[1746079379200,6.7001,149.23,149.2,6.7012]
[1746079379501,6.7001,149.23,149.19,6.7016]
[1746079379798,30.5001,149.23,149.17,30.86848717]
[1746079380003,30.5001,149.23,149.2,6.7013]
[1746079380507,6.7006,149.22,149.17,30.86848717]
[1746079381202,6.7009,149.21,149.17,30.86848717]
[1746079381394,23.8,149.23,149.17,30.86848717]
[1746079381701,6.7005,149.22,149.17,30.86848717]
[1746079381898,23.8,149.23,149.17,30.86848717]
[1746079382500,6.701,149.21,149.18,6.7021]
[1746079383401,6.701,149.21,149.17,13.77108717]
[1746079383704,23.8,149.23,149.17,13.77108717]
[1746079384604,23.8,149.23,149.18,6.7022]
[1746079384905,23.8,149.23,149.16,1.9503]
[1746079385093,23.8,149.23,149.14,32.91258717]
[1746079385298,23.8,149.23,149.17,7.06848717]
[1746079385606,23.8,149.23,149.21,6.7006]
[1746079387105,6.0523,149.28,149.17,7.06848717]
[1746079387302,23.8,149.27,149.2,7.06848717]
[1746079387604,6.6987,149.26,149.2,7.06848717]
[1746079387806,6.6987,149.26,149.23,6.6999]
[1746079388006,10.7245,149.28,149.2,7.06848717]
[1746079388198,1.9596,149.33,149.26,6.6983]
[1746079388403,29.01019506,149.32,149.26,6.6983]
[1746079388603,29.01019506,149.32,149.23,7.06848717]
[1746079388604,6.6971,149.3,149.23,7.06848717]
[1746079388907,23.8,149.3,149.27,6.6979]
[1746079390206,6.6966,149.31,149.28,6.6978]
[1746079391412,6.6952,149.34,149.26,30.86848717]
[1746079392104,6.6952,149.34,149.3,6.6967]
[1746079392404,6.6958,149.33,149.26,30.86848717]
[1746079392603,6.6958,149.33,149.26,23.8]
[1746079394110,6.6958,149.33,149.29,6.697]
[1746079397613,6.6958,149.33,149.3,6.6969]
[1746079397806,6.6952,149.34,149.3,6.6969]
[1746079400619,6.6955,149.33,149.29,6.6973]
[1746079402119,6.6955,149.33,149.3,6.6967]
[1746079402311,6.6952,149.34,149.3,6.6967]
[1746079402713,6.6958,149.33,149.29,6.6972]
[1746079403015,554.66,149.35,149.26,30.86848717]
[1746079403321,6.6952,149.34,149.3,6.6965]
[1746079403617,554.66,149.35,149.3,6.6965]
[1746079405218,6.6958,149.33,149.3,6.6965]
[1746079406919,6.6952,149.34,149.31,6.6964]
[1746079407109,6.6952,149.34,149.26,30.86848717]
[1746079407516,6.6952,149.34,149.3,6.6967]
[1746079408016,554.66,149.35,149.26,23.8]
[1746079408220,9.05948717,149.34,149.23,32.92118717]
[1746079408409,11.18148717,149.34,149.23,32.92118717]
[1746079408819,6.6976,149.29,149.25,6.6987]
[1746079409720,6.6976,149.29,149.26,6.6986]
[1746079410220,30.4571,149.3,149.26,6.6986]
[1746079410921,6.6973,149.29,149.26,6.6986]
[1746079413920,30.4571,149.3,149.26,6.6986]
[1746079414121,30.4571,149.3,149.27,6.6981]
[1746079414325,30.4571,149.3,149.23,32.92118717]
[1746079415024,6.6974,149.29,149.26,6.6985]
[1746079418724,30.457,149.3,149.27,6.6979]
[1746079420324,30.457,149.3,149.26,6.6985]
[1746079420516,6.6974,149.29,149.26,6.6985]
[1746079422528,30.457,149.3,149.26,6.6985]
[1746079422822,23.76,149.3,149.23,32.92118717]
[1746079423029,6.6963,149.32,149.26,7.06848717]
[1746079423225,23.76,149.33,149.26,7.06848717]
[1746079423425,23.76,149.33,149.28,6.6975]
[1746079423628,6.6961,149.32,149.26,7.06848717]
[1746079424029,6.6961,149.32,149.28,6.6975]
[1746079425830,6.6961,149.32,149.29,6.6973]
[1746079426928,6.6961,149.32,149.28,6.6976]
[1746079427526,6.6964,149.31,149.28,6.6976]
[1746079430531,6.6972,149.3,149.26,7.06848717]
[1746079430834,23.76,149.33,149.24,4.1748]
[1746079431028,6.6972,149.3,149.26,6.6983]
[1746079431334,6.6972,149.3,149.24,4.1748]
[1746079431729,6.6972,149.3,149.27,6.6981]
[1746079433532,6.6973,149.29,149.26,6.6985]
[1746079434135,2.0232,149.32,149.23,32.92118717]
[1746079434634,7.06848717,149.31,149.2,34.85218717]
[1746079434837,7.06848717,149.31,149.2,23.76]
[1746079435034,6.7003,149.23,149.2,30.4612]
[1746079435232,6.7003,149.23,149.18,1.924]
[1746079435636,6.7003,149.23,149.19,6.7016]
[1746079436942,6.7005,149.22,149.19,6.7016]
[1746079437941,6.7012,149.21,149.18,1.924]
[1746079438140,23.76,149.21,149.14,27.7837]
[1746079438641,6.7017,149.2,149.16,6.7031]
[1746079438944,23.76,149.21,149.16,6.7031]
[1746079439243,6.7016,149.2,149.16,6.7031]
[1746079440545,6.7016,149.2,149.17,6.7026]
[1746079440747,30.461,149.21,149.17,6.7026]
[1746079441249,6.7015,149.2,149.17,6.7026]
[1746079441544,6.7015,149.2,149.16,6.703]
[1746079441749,23.76,149.21,149.16,6.703]
[1746079442650,6.7019,149.19,149.15,6.7032]
[1746079442850,23.76,149.21,149.15,6.7032]
[1746079443253,23.76,149.21,149.13,8.6546]
[1746079443753,6.7031,149.17,149.13,8.6546]
[1746079444754,30.4631,149.17,149.13,6.7041]
[1746079445248,30.4631,149.17,149.14,6.704]
[1746079446652,30.4631,149.17,149.13,6.7043]
[1746079447152,30.4631,149.17,149.11,30.82848717]
[1746079447851,30.4631,149.17,149.13,6.7041]
[1746079448452,6.7036,149.15,149.12,6.7049]
[1746079448649,23.76,149.17,149.12,6.7049]
[1746079448845,23.76,149.17,149.11,7.06848717]
[1746079449044,23.76,149.18,149.13,6.7042]
[1746079449553,30.4626,149.18,149.14,6.704]
[1746079449851,23.76,149.18,149.14,6.704]
[1746079450545,30.4623,149.18,149.15,6.7036]
[1746079451252,30.4623,149.18,149.14,13.77238717]
[1746079451453,6.7028,149.17,149.14,13.77238717]
[1746079451657,23.76,149.18,149.14,13.77238717]
[1746079452153,6.703,149.17,149.14,7.06848717]
[1746079452354,23.76,149.18,149.13,6.7043]
[1746079452653,2.055,149.2,149.12,2.1098]
[1746079452951,23.76,149.19,149.12,2.1098]
[1746079453152,30.4622,149.19,149.15,6.7033]
[1746079453453,23.76,149.19,149.15,6.7033]
[1746079453944,23.76,149.19,149.12,2.1098]
[1746079454154,25.8535,149.21,149.17,6.7026]
[1746079454753,30.4611,149.21,149.18,6.7023]
[1746079456856,30.4611,149.21,149.17,6.7026]
[1746079457054,6.7014,149.2,149.17,6.7026]
[1746079457260,23.76,149.21,149.14,7.06848717]
[1746079458256,6.7019,149.19,149.16,6.7031]
[1746079458451,6.7019,149.19,149.14,7.06848717]
[1746079458758,6.7019,149.19,149.15,6.7033]
[1746079459057,6.7023,149.18,149.14,7.06848717]
[1746079459458,6.7023,149.18,149.14,13.77208717]
[1746079460556,6.7027,149.17,149.14,6.7036]
[1746079460958,2.0175,149.2,149.14,6.7036]
[1746079461359,6.7024,149.18,149.15,6.7035]
[1746079462961,2.0175,149.2,149.13,30.4643]
[1746079463355,2.0175,149.2,149.13,23.76]
[1746079463662,6.7026,149.18,149.14,6.704]
[1746079464762,6.7027,149.17,149.14,6.704]
[1746079467670,6.7027,149.17,149.13,30.4643]
[1746079467958,23.76,149.17,149.07,23.76]
[1746079468166,23.76,149.17,149.11,6.7053]
[1746079468465,6.704,149.15,149.11,6.7053]
[1746079468665,23.76,149.17,149.11,6.7053]
[1746079468966,6.7039,149.15,149.11,6.7053]
[1746079469158,23.76,149.17,149.11,6.7053]
[1746079469964,6.7043,149.14,149.11,6.7053]
[1746079470866,6.7046,149.13,149.1,6.7057]
[1746079471168,6.7046,149.13,149.07,23.76]
[1746079471368,23.76,149.17,149.07,23.76]
[1746079471562,23.76,149.17,149.09,6.706]
[1746079472459,23.76,149.17,149.08,6.7065]
[1746079472660,6.7056,149.11,149.08,6.7065]
[1746079472866,6.7056,149.11,149.07,23.76]
[1746079473070,6.7056,149.11,149.07,30.4669]
[1746079474274,23.76,149.13,149.06,6.7075]
[1746079474469,23.76,149.13,149.04,29.8345]
[1746079474664,3.9908,149.12,149.04,29.8345]
[1746079475367,6.7064,149.09,149.06,6.7076]
[1746079476967,6.7064,149.09,149.05,6.7079]
[1746079477566,6.7064,149.09,149.06,6.7075]
[1746079479863,6.7064,149.09,149.05,6.7079]
[1746079480065,6.7068,149.08,149.05,6.7079]
[1746079480268,3.9908,149.12,149.05,6.7081]
[1746079481372,6.7068,149.08,149.05,6.7081]
[1746079482273,6.7068,149.08,149.04,32.5811]
[1746079483275,6.7072,149.07,149.04,32.5811]
[1746079483468,11.05928717,149.12,149.04,23.76]
[1746079483773,11.05928717,149.12,149.01,23.76]
[1746079483974,6.7074,149.07,149.03,6.709]
[1746079486674,6.7078,149.06,149.02,6.7093]
[1746079486871,23.76,149.09,149.02,6.7093]
[1746079487275,6.708,149.06,149.02,6.7093]
[1746079487874,6.708,149.06,149.03,6.709]
[1746079489276,6.708,149.06,149.02,6.7093]
[1746079491271,23.76,149.09,149.02,6.7093]
[1746079491978,6.7079,149.06,149.02,6.7093]
[1746079493574,6.7079,149.06,149.03,6.7089]
[1746079493877,6.7079,149.06,149.01,23.76]
[1746079494182,6.7079,149.06,149.02,6.7093]
[1746079495778,6.7079,149.06,149.03,6.7089]
[1746079497377,6.7079,149.06,149.02,6.7093]
[1746079497577,6.7081,149.05,149.02,6.7093]
[1746079498976,6.7078,149.06,149.03,6.7087]
[1746079501179,30.82848717,149.09,149.0,2.0411]
[1746079501780,2.0346,149.08,149.0,8.7514]
[1746079502183,2.0346,149.08,149.0,6.7103]
[1746079502376,3.9886,149.07,149.0,6.7103]
[1746079502781,6.7091,149.03,149.0,6.7103]
[1746079503589,6.7096,149.02,148.99,6.7106]
[1746079503976,23.76,149.05,148.98,23.76]
[1746079504283,6.7088,149.04,149.0,6.7103]
[1746079504482,23.76,149.05,148.98,23.76]
[1746079504884,6.7093,149.03,149.0,6.7103]
[1746079507285,6.7093,149.03,148.99,6.7106]
[1746079507484,6.7095,149.02,148.99,6.7106]
[1746079507984,23.76,149.05,148.98,23.76]
[1746079508182,23.76,149.05,148.95,23.76]
[1746079509782,6.7107,149.0,148.96,6.7118]
[1746079510382,6.7109,148.99,148.96,6.7118]
[1746079510585,6.7109,148.99,148.95,30.4725]
[1746079510882,6.7109,148.99,148.95,23.76]
[1746079511585,6.7114,148.98,148.95,23.76]
[1746079513188,6.7114,148.98,148.95,30.4723]
[1746079513786,6.711,148.99,148.95,30.4723]
[1746079514188,6.711,148.99,148.96,6.712]
[1746079518196,7.06848717,149.06,148.95,23.76]
[1746079518491,23.76,149.05,148.95,23.76]
[1746079518994,6.7104,149.0,148.97,6.7113]
[1746079519891,6.7104,149.0,148.98,6.7112]
[1746079520091,6.7104,149.0,148.95,23.76]
[1746079520486,6.7104,149.0,148.97,6.7115]
[1746079520890,6.7108,148.99,148.95,23.76]
[1746079521090,23.76,149.05,148.95,23.76]
[1746079522194,6.7106,149.0,148.97,6.7115]
[1746079522788,6.7101,149.01,148.98,6.7112]
[1746079523294,6.7097,149.02,148.98,6.7112]
[1746079523493,23.76,149.05,148.99,6.7105]
[1746079524693,6.7094,149.03,148.99,6.7105]
[1746079524894,23.76,149.05,148.97,6.7114]
[1746079525090,23.76,149.05,148.95,23.76]
[1746079525393,6.7097,149.02,148.95,23.76]
[1746079526094,6.7097,149.02,148.98,6.711]
[1746079527296,6.7097,149.02,148.99,6.7108]
[1746079527593,6.7099,149.01,148.95,23.76]
[1746079527997,6.7099,149.01,148.98,6.711]
[1746079533093,6.7104,149.0,148.96,4.54169743]
[1746079533495,6.7104,149.0,148.97,6.7114]
[1746079535398,30.85635406,149.05,148.95,23.76]
[1746079535899,30.85635406,149.05,148.97,6.7115]
[1746079536196,6.7103,149.01,148.97,6.7115]
[1746079536499,30.85635406,149.05,148.97,6.7115]
[1746079537300,6.7103,149.01,148.97,6.7115]
[1746079537897,6.7103,149.01,148.98,6.7113]
[1746079540499,6.7094,149.03,148.99,6.7107]
[1746079540699,23.74,149.06,148.96,7.09635406]
[1746079541101,6.7086,149.04,149.01,6.7096]
[1746079541300,23.74,149.06,149.01,6.7096]
[1746079542301,23.74,149.06,148.99,23.74]
[1746079542599,7.09635406,149.05,148.99,23.74]
[1746079542802,7.09635406,149.05,148.96,23.74]
[1746079542995,6.7097,149.02,148.98,6.7112]
[1746079544298,6.7099,149.01,148.98,6.7112]
[1746079548709,7.09635406,149.05,148.96,23.74]
[1746079548907,23.74,149.06,148.96,23.74]
[1746079550208,6.7098,149.02,148.99,6.7108]
[1746079553106,6.7091,149.03,149.0,6.7102]
[1746079553305,23.74,149.06,148.96,23.74]
[1746079553611,6.7095,149.02,148.99,6.7106]
[1746079553810,23.74,149.06,148.96,23.74]
[1746079554106,6.708,149.06,149.02,6.7092]
[1746079554311,3.9886,149.07,149.02,6.7092]
[1746079554503,3.9886,149.07,149.0,23.74]
[1746079554904,11.08495406,149.07,148.97,23.74]
[1746079555605,6.7095,149.02,148.99,6.7105]
[1746079556210,11.25047922,149.03,148.99,6.7105]
[1746079556611,4.54127922,149.03,148.99,6.7105]
[1746079557411,6.7095,149.02,148.99,6.7105]
[1746079559722,6.71,149.01,148.98,6.7112]
[1746079560413,4.54127922,149.01,148.96,6.7117]
[1746079562214,6.711,148.99,148.96,6.7117]
[1746079563515,4.54127922,148.99,148.93,1.963]
[1746079563816,4.54127922,148.97,148.9,28.28127922]
[1746079564016,4.54127922,148.95,148.9,23.74]
[1746079564204,23.74,148.97,148.9,28.28127922]